fUST/lending_fUST_20250821
["ID","MTS","AMOUNT","RATE_DAILY","PERIOD"]
[380470751,1755786639493,-500.0,0.00021917,3]
[380470752,1755786639502,-480.0,0.00021917,3]
[380470753,1755786639512,-480.0,0.00021917,3]
[380470754,1755786639521,-480.0,0.00021917,3]
[380470755,1755786639530,-1034.84,0.00021917,3]
[380470756,1755786639539,-480.0,0.00021917,3]
[380470757,1755786639549,-547.72,0.00021917,3]
[380470758,1755786639558,-480.0,0.00021917,3]
[380470759,1755786639568,-480.0,0.00021917,3]
[380470760,1755786639585,-480.0,0.00021917,3]
[380470761,1755786639603,-480.0,0.00021917,3]
[380470762,1755786639623,-480.0,0.00021917,3]
[380470763,1755786639644,-1694.07,0.00021917,3]
[380470764,1755786639656,-480.0,0.00021917,3]
[380470765,1755786639665,-480.0,0.00021917,3]
[380470766,1755786639675,-480.0,0.00021917,3]
[380470767,1755786639685,-480.0,0.00021917,3]
[380470768,1755786639694,-296.27285758,0.00021917,3]
[380470769,1755786639703,-480.0,0.00021917,3]
[380470770,1755786639712,-480.0,0.00021917,3]
[380470771,1755786639722,-480.0,0.00021917,3]
[380470772,1755786639731,-1262.45,0.00021917,3]
[380470773,1755786639741,-480.0,0.00021917,3]
[380470774,1755786639751,-480.0,0.00021917,3]
[380470775,1755786639760,-480.0,0.00021917,3]
[380470776,1755786639769,-613.56,0.00021917,3]
[380470777,1755786639779,-480.0,0.00021917,3]
[380470778,1755786639789,-480.0,0.00021917,3]
[380470779,1755786639800,-480.0,0.00021917,3]
[380470780,1755786639810,-480.0,0.00021917,3]
[380470782,1755786639820,-480.0,0.00021917,3]
[380470783,1755786639829,-480.0,0.00021917,3]
[380470784,1755786639838,-522.83,0.00021917,3]
[380470785,1755786639848,-480.0,0.00021917,3]
[380470786,1755786639858,-480.0,0.00021917,3]
[380470788,1755786639867,-480.0,0.00021917,3]
[380470790,1755786639878,-730.75,0.00021917,3]
[380470792,1755786639887,-516.59,0.00021917,3]
[380470794,1755786639896,-480.0,0.00021917,3]
[380470796,1755786639908,-480.0,0.00021917,3]
[380470797,1755786639918,-768.9,0.00021917,3]
[380470798,1755786639927,-480.0,0.00021917,3]
[380470799,1755786639937,-480.0,0.00021917,3]
[380470800,1755786639947,-480.0,0.00021917,3]
[380470801,1755786639957,-889.07,0.00021917,3]
[380470803,1755786639967,-480.0,0.00021917,3]
[380470805,1755786639976,-480.0,0.00021917,3]
[380470807,1755786639986,-480.0,0.00021917,3]
[380470809,1755786639996,-761.93,0.00021917,3]
[380470811,1755786640006,-732.18,0.00021917,3]
[380470813,1755786640016,-480.0,0.00021917,3]
[380470815,1755786640026,-480.0,0.00021917,3]
[380470817,1755786640035,-611.85,0.00021917,3]
[380470819,1755786640045,-480.0,0.00021917,3]
[380470821,1755786640055,-480.0,0.00021917,3]
[380470823,1755786640065,-480.0,0.00021917,3]
[380470825,1755786640075,-757.98,0.00021917,3]
[380470827,1755786640086,-480.0,0.00021917,3]
[380470829,1755786640095,-480.0,0.00021917,3]
[380470831,1755786640106,-603.41,0.00021917,3]
[380470833,1755786640115,-654.86,0.00021917,3]
[380470835,1755786640124,-480.0,0.00021917,2]
[380470837,1755786640134,-480.0,0.00021917,3]
[380470839,1755786640145,-480.0,0.00021917,3]
[380470841,1755786640157,-1003.51,0.00021917,3]
[380470843,1755786640169,-151.0,0.00021917,2]
[380470845,1755786640179,-480.0,0.00021917,3]
[380470847,1755786640188,-480.0,0.00021917,3]
[380470849,1755786640198,-344.56625445,0.00021917,3]
[380470851,1755786640208,-151.0,0.00021917,2]
[380470853,1755786640218,-1942.05,0.00021917,3]
[380470855,1755786640231,-480.0,0.00021917,3]
[380470857,1755786640240,-480.0,0.00021917,3]
[380470859,1755786640250,-480.0,0.00021917,3]
[380470861,1755786640260,-480.0,0.00021917,3]
[380470863,1755786640270,-480.0,0.00021917,3]
[380470865,1755786640279,-181.88520843,0.00021917,3]
[380470867,1755786640288,-1066.87,0.00021917,3]
[380470869,1755786640298,-480.0,0.00021917,3]
[380470871,1755786640307,-480.0,0.00021917,3]
[380470873,1755786640317,-480.0,0.00021917,3]
[380470875,1755786640327,-780.74,0.00021917,3]
[380470877,1755786640337,-480.0,0.00021917,3]
[380470879,1755786640347,-151.0,0.00021917,2]
[380470881,1755786640357,-815.74,0.00021917,3]
[380470883,1755786640367,-480.0,0.00021917,3]
[380470885,1755786640377,-480.0,0.00021917,3]
[380470887,1755786640387,-480.0,0.00021917,3]
[380470889,1755786640396,-480.0,0.00021917,3]
[380470891,1755786640406,-1188.67,0.00021917,3]
[380470892,1755786640416,-151.0,0.00021917,2]
[380470894,1755786640426,-480.0,0.00021917,3]
[380470896,1755786640434,-151.0,0.00021917,2]
[380470898,1755786640444,-480.0,0.00021917,3]
[380470900,1755786640453,-480.0,0.00021917,3]
[380470902,1755786640463,-480.0,0.00021917,3]
[380470904,1755786640472,-480.0,0.00021917,3]
[380470906,1755786640482,-151.0,0.00021917,2]
[380470908,1755786640491,-480.0,0.00021917,3]
[380470910,1755786640500,-2028.2,0.00021917,3]
[380470912,1755786640509,-590.67,0.00021917,3]
[380470914,1755786640519,-480.0,0.00021917,3]
[380470916,1755786640528,-673.79,0.00021917,3]
[380470918,1755786640538,-151.0,0.00021917,2]
[380470920,1755786640547,-151.0,0.00021917,2]
[380470922,1755786640556,-480.0,0.00021917,3]
[380470924,1755786640567,-1360.18,0.00021917,3]
[380470926,1755786640576,-480.0,0.00021917,3]
[380470928,1755786640586,-480.0,0.00021917,3]
[380470930,1755786640597,-480.0,0.00021917,3]
[380470932,1755786640608,-480.0,0.00021917,3]
[380470934,1755786640617,-619.63,0.00021917,3]
[380470936,1755786640627,-2208.57,0.00021917,3]
[380470938,1755786640636,-765.51,0.00021917,3]
[380470940,1755786640645,-480.0,0.00021917,3]
[380470941,1755786640656,-719.21,0.00021917,3]
[380470944,1755786640665,-480.0,0.00021917,3]
[380470946,1755786640675,-836.07,0.00021917,3]
[380470948,1755786640686,-480.0,0.00021917,3]
[380470950,1755786640696,-796.77,0.00021917,3]
[380470952,1755786640705,-646.32,0.00021917,3]
[380470953,1755786640715,-310.38087552,0.00021917,3]
[380470955,1755786640724,-743.76,0.00021917,3]
[380470957,1755786640734,-480.0,0.00021917,3]
[380470959,1755786640743,-414.8654493,0.00021917,3]
[380470961,1755786640752,-480.0,0.00021917,3]
[380470963,1755786640762,-460.0,0.00021917,3]
[380470966,1755786640772,-584.43,0.00021917,3]
[380470967,1755786640782,-733.82,0.00021917,3]
[380470970,1755786640792,-480.0,0.00021917,3]
[380470972,1755786640801,-151.0,0.00021917,2]
[380470973,1755786640811,-151.0,0.00021917,2]
[380470975,1755786640821,-480.0,0.00021917,3]
[380470977,1755786640830,-480.0,0.00021917,3]
[380470979,1755786640842,-480.0,0.00021917,3]
[380470981,1755786640851,-151.0,0.00021917,2]
[380470983,1755786640861,-246.234685,0.00021917,2]
[380470985,1755786640870,-480.0,0.00021917,3]
[380470987,1755786640880,-480.0,0.00021917,3]
[380470989,1755786640889,-480.0,0.00021917,3]
[380470991,1755786640902,-480.0,0.00021917,3]
[380470993,1755786640911,-535.53,0.00021917,3]
[380470995,1755786640922,-480.0,0.00021917,3]
[380470997,1755786640931,-1047.98,0.00021917,3]
[380470999,1755786640941,-480.0,0.00021917,3]
[380471001,1755786640950,-480.0,0.00021917,3]
[380471003,1755786640960,-631.93,0.00021917,3]
[380471005,1755786640969,-660.7,0.00021917,3]
[380471007,1755786640979,-613.65319889,0.00021917,3]
[380471009,1755786640988,-692.0,0.00021917,3]
[380471011,1755786640998,-480.0,0.00021917,3]
[380471013,1755786641007,-151.0,0.00021917,2]
[380471015,1755786641016,-480.0,0.00021917,3]
[380471017,1755786641026,-571.24,0.00021917,3]
[380471019,1755786641035,-761.89,0.00021917,3]
[380471021,1755786641044,-480.0,0.00021917,3]
[380471023,1755786641053,-151.755237,0.00021917,2]
[380471025,1755786641062,-480.0,0.00021917,3]
[380471027,1755786641072,-480.0,0.00021917,3]
[380471028,1755786641082,-1273.17,0.00021917,3]
[380471030,1755786641091,-961.32,0.00021917,3]
[380471032,1755786641100,-480.0,0.00021917,3]
[380471034,1755786641110,-2028.4,0.00021917,3]
[380471037,1755786641120,-480.0,0.00021917,3]
[380471038,1755786641130,-480.0,0.00021917,3]
[380471039,1755786641139,-151.0,0.00021917,2]
[380471040,1755786641149,-911.18,0.00021917,3]
[380471041,1755786641159,-480.0,0.00021917,3]
[380471042,1755786641168,-480.0,0.00021917,3]
[380471043,1755786641178,-480.0,0.00021917,3]
[380471044,1755786641187,-480.0,0.00021917,3]
[380471045,1755786641374,-575.04,0.00021917,3]
[380471046,1755786641384,-1639.4,0.00021917,3]
[380471047,1755786641394,-516.96,0.00021917,3]
[380471048,1755786641405,-480.0,0.00021917,3]
[380471049,1755786641414,-1000.0,0.00021917,3]
[380471050,1755786641423,-775.6,0.00021917,3]
[380471051,1755786641433,-480.0,0.00021917,3]
[380471052,1755786641442,-480.0,0.00021917,3]
[380471053,1755786641451,-480.0,0.00021917,3]
[380471054,1755786641461,-2257.0,0.00021917,3]
[380471055,1755786641470,-480.0,0.00021917,3]
[380471056,1755786641480,-480.0,0.00021917,3]
[380471057,1755786641489,-480.0,0.00021917,3]
[380471058,1755786641499,-2156.13,0.00021917,3]
[380471059,1755786641508,-480.0,0.00021917,3]
[380471060,1755786641518,-480.0,0.00021917,3]
[380471061,1755786641527,-480.0,0.00021917,3]
[380471062,1755786641536,-151.0,0.00021917,2]
[380471063,1755786641546,-480.0,0.00021917,3]
[380471064,1755786641555,-2336.74,0.00021917,3]
[380471066,1755786641564,-1351.14,0.00021917,3]
[380471067,1755786641574,-524.76,0.00021917,3]
[380471068,1755786641584,-1280.76,0.00021917,3]
[380471070,1755786641594,-480.0,0.00021917,3]
[380471072,1755786641604,-152.753718,0.00021917,2]
[380471074,1755786641617,-151.0,0.00021917,2]
[380471076,1755786641627,-151.0,0.00021917,2]
[380471078,1755786641637,-480.0,0.00021917,3]
[380471081,1755786641647,-480.0,0.00021917,3]
[380471083,1755786641660,-480.0,0.00021917,3]
[380471085,1755786641669,-480.0,0.00021917,3]
[380471087,1755786641679,-480.0,0.00021917,3]
[380471088,1755786641689,-553.1,0.00021917,3]
[380471090,1755786641699,-151.0,0.00021917,2]
[380471092,1755786641709,-480.0,0.00021917,3]
[380471094,1755786641718,-480.0,0.00021917,3]
[380471097,1755786641728,-151.0,0.00021917,2]
[380471098,1755786641737,-480.0,0.00021917,3]
[380471100,1755786641747,-523.4324866,0.00021917,3]
[380471102,1755786641756,-677.89,0.00021917,3]
[380471105,1755786641766,-480.0,0.00021917,3]
[380471106,1755786641776,-1002.38,0.00021917,3]
[380471108,1755786641786,-645.37,0.00021917,3]
[380471110,1755786641795,-1252.49,0.00021917,3]
[380471112,1755786641805,-480.0,0.00021917,3]
[380471114,1755786641816,-1043.56,0.00021917,3]
[380471116,1755786641826,-913.69,0.00021917,3]
[380471118,1755786641837,-306.8640188,0.00021917,3]
[380471120,1755786641848,-460.0,0.00021917,3]
[380471122,1755786641859,-480.0,0.00021917,3]
[380471124,1755786641869,-480.0,0.00021917,3]
[380471126,1755786641881,-2168.5,0.00021917,3]
[380471128,1755786641891,-151.0,0.00021917,2]
[380471130,1755786641904,-525.47,0.00021917,3]
[380471132,1755786641914,-480.0,0.00021917,3]
[380471134,1755786641923,-151.0,0.00021917,2]
[380471136,1755786641933,-151.0,0.00021917,2]
[380471138,1755786641942,-480.0,0.00021917,3]
[380471140,1755786641951,-480.0,0.00021917,3]
[380471142,1755786641961,-480.0,0.00021917,3]
[380471144,1755786641970,-480.0,0.00021917,3]
[380471146,1755786641979,-500.0,0.00021917,3]
[380471148,1755786641989,-2181.62,0.00021917,3]
[380471150,1755786641999,-500.0,0.00021917,3]
[380471152,1755786642008,-500.0,0.00021917,3]
[380471154,1755786642017,-500.0,0.00021917,3]
[380471156,1755786642026,-500.0,0.00021917,3]
[380471158,1755786642035,-182.92382755,0.00021917,3]
[380471160,1755786642045,-500.0,0.00021917,3]
[380471162,1755786642057,-500.0,0.00021917,3]
[380471164,1755786642066,-614.19773401,0.00021917,3]
[380471166,1755786642076,-480.0,0.00021917,3]
[380471168,1755786642085,-480.0,0.00021917,3]
[380471170,1755786642094,-480.0,0.00021917,3]
[380471172,1755786642104,-480.0,0.00021917,3]
[380471174,1755786642114,-480.0,0.00021917,3]
[380471176,1755786642123,-151.0,0.00021917,2]
[380471178,1755786642132,-482.43758831,0.00021917,3]
[380471180,1755786642142,-480.0,0.00021917,3]
[380471182,1755786642153,-480.0,0.00021917,3]
[380471184,1755786642163,-480.0,0.00021917,3]
[380471186,1755786642172,-480.0,0.00021917,3]
[380471188,1755786642181,-480.0,0.00021917,3]
[380471190,1755786642191,-906.64,0.00021917,3]
[380471192,1755786642201,-480.0,0.00021917,3]
[380471194,1755786642210,-480.0,0.00021917,3]
[380471196,1755786642219,-151.0,0.00021917,2]
[380471198,1755786642229,-480.0,0.00021917,3]
[380471200,1755786642238,-461.5908199,0.00021917,3]
[380471202,1755786642247,-151.0,0.00021917,2]
[380471204,1755786642257,-428.13952706,0.00021917,3]
[380471205,1755786642266,-480.0,0.00021917,3]
[380471208,1755786642276,-481.31096931,0.00021917,3]
[380471210,1755786642285,-480.0,0.00021917,3]
[380471212,1755786642295,-480.0,0.00021917,3]
[380471213,1755786642305,-2711.67,0.00021917,3]
[380471216,1755786642315,-480.0,0.00021917,3]
[380471217,1755786642324,-480.0,0.00021917,3]
[380471220,1755786642334,-1101.24,0.00021917,3]
[380471221,1755786642343,-480.0,0.00021917,3]
[380471224,1755786642352,-609.39,0.00021917,3]
[380471226,1755786642362,-480.0,0.00021917,3]
[380471228,1755786642371,-1003.37,0.00021917,3]
[380471229,1755786642380,-151.0,0.00021917,2]
[380471231,1755786642390,-480.0,0.00021917,3]
[380471233,1755786642400,-480.0,0.00021917,3]
[380471235,1755786642410,-1070.48,0.00021917,3]
[380471237,1755786642420,-970.2,0.00021917,3]
[380471239,1755786642430,-480.0,0.00021917,3]
[380471241,1755786642439,-480.0,0.00021917,3]
[380471243,1755786642448,-480.0,0.00021917,3]
[380471245,1755786642458,-151.0,0.00021917,2]
[380471247,1755786642468,-223.234333,0.00021917,2]
[380471249,1755786642476,-480.0,0.00021917,3]
[380471251,1755786642486,-924.68,0.00021917,3]
[380471253,1755786642496,-480.0,0.00021917,3]
[380471255,1755786642506,-151.0,0.00021917,2]
[380471257,1755786642515,-2207.44,0.00021917,3]
[380471259,1755786642524,-480.0,0.00021917,3]
[380471261,1755786642533,-480.0,0.00021917,3]
[380471263,1755786642543,-480.0,0.00021917,3]
[380471265,1755786642552,-5021.13,0.00021917,3]
[380471267,1755786642561,-480.86465295,0.00021917,3]
[380471269,1755786642570,-480.0,0.00021917,3]
[380471271,1755786642579,-151.0,0.00021917,2]
[380471273,1755786642589,-2987.54,0.00021917,3]
[380471275,1755786642598,-480.0,0.00021917,3]
[380471277,1755786642609,-480.0,0.00021917,3]
[380471279,1755786642619,-480.0,0.00021917,3]
[380471281,1755786642628,-480.0,0.00021917,3]
[380471283,1755786642638,-564.93,0.00021917,3]
[380471285,1755786642649,-480.0,0.00021917,3]
[380471288,1755786642660,-480.0,0.00021917,3]
[380471290,1755786642670,-502.54,0.00021917,3]
[380471292,1755786642680,-2738.22,0.00021917,3]
[380471293,1755786642690,-480.0,0.00021917,3]
[380471295,1755786642699,-480.0,0.00021917,3]
[380471297,1755786642709,-480.0,0.00021917,3]
[380471299,1755786642719,-499.02,0.00021917,3]
[380471301,1755786642728,-583.42,0.00021917,3]
[380471303,1755786642738,-480.0,0.00021917,3]
[380471305,1755786642748,-480.0,0.00021917,3]
[380471307,1755786642757,-1709.87,0.00021917,3]
[380471309,1755786642768,-480.0,0.00021917,3]
[380471311,1755786642778,-401.62846084,0.00021917,3]
[380471313,1755786642787,-480.0,0.00021917,3]
[380471315,1755786642797,-957.91,0.00021917,3]
[380471317,1755786642806,-480.0,0.00021917,3]
[380471320,1755786642817,-480.0,0.00021917,3]
[380471322,1755786642826,-461.27936865,0.00021917,3]
[380471324,1755786642836,-480.0,0.00021917,3]
[380471326,1755786642846,-564.34,0.00021917,3]
[380471328,1755786642855,-480.0,0.00021917,3]
[380471331,1755786642865,-241.940684,0.00021917,2]
[380471333,1755786642876,-625.42119377,0.00021917,3]
[380471335,1755786642885,-480.0,0.00021917,3]
[380471338,1755786642896,-480.0,0.00021917,3]
[380471339,1755786642907,-151.0,0.00021917,2]
[380471342,1755786642916,-480.0,0.00021917,3]
[380471343,1755786642926,-480.0,0.00021917,3]
[380471345,1755786642935,-964.11,0.00021917,3]
[380471347,1755786642945,-8201.92,0.00021917,3]
[380471349,1755786642954,-441.59428367,0.00021917,3]
[380471351,1755786642963,-480.0,0.00021917,3]
[380471354,1755786642973,-960.3,0.00021917,3]
[380471356,1755786642982,-710.6,0.00021917,3]
[380471359,1755786642992,-961.22,0.00021917,3]
[380471361,1755786643003,-460.0,0.00021917,3]
[380471363,1755786643013,-922.2,0.00021917,3]
[380471365,1755786643022,-151.0,0.00021917,2]
[380471367,1755786643031,-480.0,0.00021917,3]
[380471369,1755786643041,-151.0,0.00021917,2]
[380471371,1755786643050,-2470.76,0.00021917,3]
[380471373,1755786643058,-542.8,0.00021917,3]
[380471375,1755786643067,-3024.19,0.00021917,2]
[380471377,1755786643076,-480.0,0.00021917,3]
[380471379,1755786643086,-1250.87,0.00021917,3]
[380471381,1755786643095,-330.47430461,0.00021917,3]
[380471383,1755786643105,-480.0,0.00021917,3]
[380471386,1755786643114,-151.0,0.00021917,2]
[380471387,1755786643123,-480.0,0.00021917,3]
[380471389,1755786643133,-441.82025966,0.00021917,3]
[380471391,1755786643142,-1465.32,0.00021917,3]
[380471393,1755786643153,-480.0,0.00021917,3]
[380471396,1755786643163,-480.0,0.00021917,3]
[380471398,1755786643173,-480.0,0.00021917,3]
[380471400,1755786643182,-12362.61,0.00021917,3]
[380471401,1755786643192,-284.40030026,0.00021917,3]
[380471403,1755786643201,-480.0,0.00021917,3]
[380471405,1755786643210,-338.74575135,0.00021917,3]
[380471407,1755786643220,-601.37,0.00021917,3]
[380471409,1755786643229,-2727.75,0.00021917,3]
[380471411,1755786643238,-371.64764163,0.00021917,3]
[380471413,1755786643248,-576.36,0.00021917,3]
[380471415,1755786643257,-4324.2,0.00021917,3]
[380471417,1755786643266,-480.0,0.00021917,3]
[380471419,1755786643276,-500.0,0.00021917,3]
[380471421,1755786643286,-500.0,0.00021917,3]
[380471423,1755786643295,-480.0,0.00021917,3]
[380471425,1755786643304,-500.0,0.00021917,3]
[380471427,1755786643314,-500.0,0.00021917,3]
[380471429,1755786643323,-1797.69,0.00021917,3]
[380471431,1755786643333,-500.0,0.00021917,3]
[380471433,1755786643342,-500.0,0.00021917,3]
[380471435,1755786643351,-1308.84,0.00021917,3]
[380471437,1755786643360,-442.31973595,0.00021917,3]
[380471439,1755786643369,-6340.32,0.00021917,3]
[380471441,1755786643378,-1632.4,0.00021917,3]
[380471443,1755786643388,-480.0,0.00021917,3]
[380471445,1755786643397,-850.09,0.00021917,3]
[380471447,1755786643407,-480.0,0.00021917,3]
[380471449,1755786643417,-151.0,0.00021917,2]
[380471451,1755786643426,-480.0,0.00021917,3]
[380471453,1755786643435,-480.0,0.00021917,3]
[380471455,1755786643444,-1520.7,0.00021917,3]
[380471457,1755786643453,-480.0,0.00021917,3]
[380471459,1755786643463,-665.45,0.00021917,3]
[380471461,1755786643472,-371.94054313,0.00021917,3]
[380471463,1755786643481,-278.33797847,0.00021917,3]
[380471466,1755786643490,-1274.01,0.00021917,3]
[380471469,1755786643500,-480.0,0.00021917,3]
[380471472,1755786643510,-480.0,0.00021917,3]
[380471475,1755786643519,-480.0,0.00021917,3]
[380471478,1755786643528,-1840.81,0.00021917,3]
[380471480,1755786643538,-151.429622,0.00021917,2]
[380471482,1755786643547,-539.45,0.00021917,3]
[380471484,1755786643556,-487.63,0.00021917,3]
[380471486,1755786643566,-1074.27,0.00021917,3]
[380471488,1755786643575,-480.0,0.00021917,3]
[380471490,1755786643584,-1812.61,0.00021917,3]
[380471492,1755786643593,-480.0,0.00021917,3]
[380471495,1755786643604,-480.0,0.00021917,3]
[380471498,1755786643618,-480.0,0.00021917,3]
[380471501,1755786643628,-151.0,0.00021917,2]
[380471504,1755786643637,-894.59,0.00021917,3]
[380471507,1755786643647,-4682.98,0.00021917,3]
[380471511,1755786643659,-893.84,0.00021917,3]
[380471513,1755786643668,-1248.08,0.00021917,3]
[380471516,1755786643679,-775.7,0.00021917,3]
[380471519,1755786643689,-480.0,0.00021917,3]
[380471522,1755786643698,-1166.65,0.00021917,3]
[380471525,1755786643707,-202.4163925,0.00021917,3]
[380471527,1755786643717,-1057.21,0.00021917,3]
[380471530,1755786643726,-5964.43,0.00021917,3]
[380471533,1755786643736,-480.0,0.00021917,3]
[380471536,1755786643745,-480.0,0.00021917,3]
[380471539,1755786643755,-2396.39,0.00021917,3]
[380471542,1755786643765,-480.0,0.00021917,3]
[380471545,1755786643774,-151.0,0.00021917,2]
[380471549,1755786643784,-480.0,0.00021917,3]
[380471552,1755786643794,-480.0,0.00021917,3]
[380471555,1755786643803,-422.52932423,0.00021917,3]
[380471558,1755786643813,-282.76730923,0.00021917,3]
[380471560,1755786643822,-480.0,0.00021917,3]
[380471564,1755786643832,-151.0,0.00021917,2]
[380471567,1755786643842,-602.31,0.00021917,3]
[380471569,1755786643851,-512.47,0.00021917,3]
[380471572,1755786643861,-797.52,0.00021917,3]
[380471575,1755786643870,-480.0,0.00021917,3]
[380471577,1755786643880,-260.130393,0.00021917,2]
[380471579,1755786643889,-480.0,0.00021917,3]
[380471581,1755786643898,-480.0,0.00021917,3]
[380471583,1755786643909,-151.0,0.00021917,2]
[380471585,1755786643920,-1834.51,0.00021917,3]
[380471587,1755786643930,-151.0,0.00021917,2]
[380471589,1755786643940,-480.0,0.00021917,3]
[380471591,1755786643950,-441.94573009,0.00021917,3]
[380471593,1755786643960,-604.04,0.00021917,3]
[380471595,1755786643970,-480.0,0.00021917,3]
[380471597,1755786643979,-480.0,0.00021917,3]
[380471599,1755786643989,-441.03266137,0.00021917,3]
[380471601,1755786643999,-480.0,0.00021917,3]
[380471603,1755786644008,-1640.98,0.00021917,3]
[380471605,1755786644018,-361.47092011,0.00021917,3]
[380471607,1755786644028,-480.0,0.00021917,3]
[380471609,1755786644038,-480.0,0.00021917,3]
[380471611,1755786644048,-480.0,0.00021917,3]
[380471613,1755786644057,-480.0,0.00021917,3]
[380471615,1755786644067,-480.0,0.00021917,3]
[380471617,1755786644076,-480.0,0.00021917,3]
[380471619,1755786644085,-151.0,0.00021917,2]
[380471621,1755786644095,-480.0,0.00021917,3]
[380471623,1755786644104,-518.98,0.00021917,3]
[380471625,1755786644113,-1428.43,0.00021917,3]
[380471627,1755786644122,-480.0,0.00021917,3]
[380471629,1755786644131,-480.0,0.00021917,3]
[380471631,1755786644141,-480.0,0.00021917,3]
[380471633,1755786644150,-480.0,0.00021917,3]
[380471635,1755786644163,-1363.43,0.00021917,3]
[380471637,1755786644173,-480.0,0.00021917,3]
[380471639,1755786644182,-480.0,0.00021917,3]
[380471641,1755786644191,-10031.76,0.00021917,3]
[380471643,1755786644200,-481.92935099,0.00021917,3]
[380471645,1755786644209,-151.0,0.00021917,2]
[380471647,1755786644217,-1315.65,0.00021917,3]
[380471649,1755786644226,-151.0,0.00021917,2]
[380471651,1755786644235,-655.56,0.00021917,3]
[380471653,1755786644243,-2621.3,0.00021917,3]
[380471655,1755786644252,-480.0,0.00021917,3]
[380471657,1755786644261,-1439.01,0.00021917,3]
[380471659,1755786644270,-152.740403,0.00021917,2]
[380471661,1755786644279,-965.24,0.00021917,3]
[380471663,1755786644288,-480.0,0.00021917,3]
[380471665,1755786644297,-480.0,0.00021917,3]
[380471667,1755786644305,-5178.7,0.00021917,3]
[380471669,1755786644312,-151.0,0.00021917,2]
[380471671,1755786644321,-480.0,0.00021917,3]
[380471672,1755786644331,-1046.1,0.00021917,3]
[380471674,1755786644340,-480.0,0.00021917,3]
[380471676,1755786644349,-700.36,0.00021917,3]
[380471678,1755786644359,-559.67047086,0.00021917,3]
[380471680,1755786644368,-490.97,0.00021917,3]
[380471682,1755786644377,-5086.71,0.00021917,3]
[380471684,1755786644386,-480.0,0.00021917,3]
[380471686,1755786644395,-480.0,0.00021917,3]
[380471688,1755786644405,-480.0,0.00021917,3]
[380471690,1755786644414,-480.0,0.00021917,3]
[380471692,1755786644424,-2535.73,0.00021917,3]
[380471694,1755786644433,-500.0,0.00021917,3]
[380471696,1755786644442,-500.0,0.00021917,3]
[380471698,1755786644451,-480.0,0.00021917,3]
[380471700,1755786644459,-480.0,0.00021917,3]
[380471702,1755786644469,-480.0,0.00021917,3]
[380471704,1755786644478,-500.0,0.00021917,3]
[380471706,1755786644487,-500.0,0.00021917,3]
[380471708,1755786644497,-500.0,0.00021917,3]
[380471710,1755786644506,-500.0,0.00021917,3]
[380471712,1755786644516,-500.0,0.00021917,3]
[380471714,1755786644525,-936.56,0.00021917,3]